fUST/lending_fUST_20260510
["ID","MTS","AMOUNT","RATE_DAILY","PERIOD"]
[421971319,1778383838000,-151.0,0.0001,2]
[421971323,1778383838000,-151.0,0.0001,2]
[421971322,1778383838000,-151.0,0.0001,2]
[421971324,1778383838000,-151.0,0.0001,2]
[421971325,1778383838000,-151.0,0.0001,2]
[421971326,1778383838000,-151.0,0.0001,2]
[421971327,1778383838000,-151.0,0.0001,2]
[421971331,1778383838000,-151.0,0.0001,2]
[421971328,1778383838000,-151.0,0.0001,2]
[421971329,1778383838000,-151.0,0.0001,2]
[421971330,1778383838000,-151.0,0.0001,2]
[421971311,1778383838000,-600.0,9.986e-05,2]
[421971310,1778383838000,-559.9702926,9.928e-05,2]
[421971321,1778383838000,-151.0,0.0001,2]
[421971303,1778383838000,-300.0,9.791e-05,2]
[421971288,1778383838000,-2020.07988312,9.675e-05,2]
[421971309,1778383838000,-693.3919763,9.873e-05,2]
[421971289,1778383838000,-996.66,9.693e-05,2]
[421971290,1778383838000,-621.78829552,9.708e-05,2]
[421971292,1778383838000,-500.0,9.791e-05,2]
[421971293,1778383838000,-300.0,9.791e-05,2]
[421971291,1778383838000,-644.79446246,9.763e-05,2]
[421971296,1778383838000,-300.0,9.791e-05,2]
[421971298,1778383838000,-300.0,9.791e-05,2]
[421971297,1778383838000,-300.0,9.791e-05,2]
[421971294,1778383838000,-300.0,9.791e-05,2]
[421971308,1778383838000,-668.65185757,9.818e-05,2]
[421971306,1778383838000,-300.0,9.791e-05,2]
[421971300,1778383838000,-300.0,9.791e-05,2]
[421971301,1778383838000,-300.0,9.791e-05,2]
[421971307,1778383838000,-300.0,9.791e-05,2]
[421971305,1778383838000,-300.0,9.791e-05,2]
[421971302,1778383838000,-300.0,9.791e-05,2]
[421971299,1778383838000,-300.0,9.791e-05,2]
[421971304,1778383838000,-300.0,9.791e-05,2]
[421971343,1778383839000,-201.07,0.00010068,2]
[421971348,1778383839000,-500.0,0.00010339,2]
[421971350,1778383839000,-2201.0,0.00010465,2]
[421971357,1778383839000,-449.13834801,0.00010584,2]
[421971349,1778383839000,-277.99326448,0.00010339,2]
[421971347,1778383839000,-203.03,0.00010149,2]
[421971355,1778383839000,-150.087,0.00010582,2]
[421971346,1778383839000,-186.94,0.00010134,2]
[421971345,1778383839000,-151.0,0.00010128,2]
[421971340,1778383839000,-246.13253617,0.00010036,2]
[421971332,1778383839000,-151.0,0.0001,2]
[421971344,1778383839000,-2076.0,0.00010125,2]
[421971342,1778383839000,-500.0,0.00010065,2]
[421971337,1778383839000,-151.0,0.0001,2]
[421971335,1778383839000,-151.0,0.0001,2]
[421971338,1778383839000,-2020.0798831,0.00010033,2]
[421971339,1778383839000,-461.67526834,0.00010036,2]
[421971336,1778383839000,-151.0,0.0001,2]
[421971334,1778383839000,-151.0,0.0001,2]
[421971333,1778383839000,-151.0,0.0001,2]
[421971356,1778383839000,-268.191,0.00010582,2]
[421971341,1778383839000,-180.34,0.00010061,2]
[421971352,1778383839000,-1413.731,0.00010465,2]
[421971377,1778383839000,-3577.7963158,0.00010597,2]
[421971353,1778383839000,-2020.0798831,0.00010491,2]
[421971376,1778383839000,-78218.9829612,0.00010597,2]
[421971378,1778383839000,-281.01403108,0.00010597,2]
[421971374,1778383839000,-500.0,0.00010596,2]
[421971375,1778383839000,-500.0,0.00010596,2]
[421971373,1778383839000,-500.0,0.00010596,2]
[421971372,1778383839000,-500.0,0.00010596,2]
[421971366,1778383839000,-184.29310585,0.00010596,2]
[421971367,1778383839000,-500.0,0.00010596,2]
[421971370,1778383839000,-500.0,0.00010596,2]
[421971365,1778383839000,-500.0,0.00010596,2]
[421971369,1778383839000,-321.23793877,0.00010596,2]
[421971371,1778383839000,-500.0,0.00010596,2]
[421971354,1778383839000,-177.23,0.00010553,2]
[421971360,1778383839000,-500.0,0.00010596,2]
[421971359,1778383839000,-500.0,0.00010596,2]
[421971363,1778383839000,-500.0,0.00010596,2]
[421971358,1778383839000,-500.0,0.00010596,2]
[421971362,1778383839000,-500.0,0.00010596,2]
[421971364,1778383839000,-500.0,0.00010596,2]
[421971368,1778383839000,-500.0,0.00010596,2]
[421971361,1778383839000,-500.0,0.00010596,2]
[421971351,1778383839000,-647.0,0.00010465,2]
[421971399,1778383845000,-798.0,9.7e-05,2]
[421971405,1778383845000,-2060.3243339,0.00010597,2]
[421971404,1778383845000,-4479.15198489,0.00010597,2]
[421971403,1778383845000,-2535.75258541,0.00010597,2]
[421971402,1778383845000,-3197.03465272,0.00010597,2]
[421971401,1778383845000,-1752.6763119,0.00010597,2]
[421971400,1778383845000,-29867.96839721,0.00010597,2]
[421971416,1778383846000,-18765.42894494,0.00010597,2]
[421971420,1778384050000,988.62,0.00019178,120]
[421971422,1778384194000,240.0885685,0.00019178,120]
[421971498,1778385033000,-425.57453144,9.022e-05,2]
[421971499,1778385033000,-425.57453144,9.182e-05,2]
[421971502,1778385033000,-1200.0,9.479e-05,2]
[421971500,1778385033000,-163.02422954,9.474e-05,2]
[421971503,1778385033000,-168.69292916,9.48e-05,2]
[421971505,1778385033000,-9680.08213856,9.48e-05,2]
[421971504,1778385033000,-679.23543468,9.48e-05,2]
[421971506,1778385033000,-2719.4386483,9.48e-05,2]
[421971501,1778385033000,-300.0,9.479e-05,2]
[421971570,1778385038000,-300.0,9.58e-05,2]
[421971574,1778385038000,-300.0,9.58e-05,2]
[421971577,1778385038000,-300.0,9.58e-05,2]
[421971572,1778385038000,-300.0,9.58e-05,2]
[421971575,1778385038000,-300.0,9.58e-05,2]
[421971576,1778385038000,-300.0,9.58e-05,2]
[421971573,1778385038000,-300.0,9.58e-05,2]
[421971566,1778385038000,-82326.91245289,9.48e-05,2]
[421971569,1778385038000,-300.0,9.58e-05,2]
[421971581,1778385038000,-300.0,9.58e-05,2]
[421971568,1778385038000,-300.0,9.58e-05,2]
[421971567,1778385038000,-300.0,9.58e-05,2]
[421971565,1778385038000,-5106.6871335,9.48e-05,2]
[421971555,1778385038000,-9907.04282915,9.48e-05,2]
[421971550,1778385038000,-3337.73803097,9.48e-05,2]
[421971571,1778385038000,-300.0,9.58e-05,2]
[421971578,1778385038000,-300.0,9.58e-05,2]
[421971587,1778385038000,-151.0,0.0001,2]
[421971582,1778385038000,-300.0,9.58e-05,2]
[421971579,1778385038000,-300.0,9.58e-05,2]
[421971599,1778385038000,-151.0,0.0001,2]
[421971598,1778385038000,-151.0,0.0001,2]
[421971597,1778385038000,-151.0,0.0001,2]
[421971596,1778385038000,-151.0,0.0001,2]
[421971589,1778385038000,-151.0,0.0001,2]
[421971590,1778385038000,-151.0,0.0001,2]
[421971592,1778385038000,-151.0,0.0001,2]
[421971594,1778385038000,-151.0,0.0001,2]
[421971591,1778385038000,-151.0,0.0001,2]
[421971588,1778385038000,-151.0,0.0001,2]
[421971586,1778385038000,-162.63743379,9.985e-05,2]
[421971595,1778385038000,-151.0,0.0001,2]
[421971585,1778385038000,-500.0,9.8e-05,2]
[421971584,1778385038000,-189.959,9.8e-05,2]
[421971583,1778385038000,-600.0,9.771e-05,2]
[421971593,1778385038000,-151.0,0.0001,2]
[421971609,1778385039000,-1412.0,0.00010265,2]
[421971616,1778385039000,-808.03195324,0.00010565,2]
[421971614,1778385039000,-300.0,0.00010427,2]
[421971613,1778385039000,-2624.70145661,0.00010385,2]
[421971615,1778385039000,-5118.7406192,0.00010533,2]
[421971611,1778385039000,-40145.0,0.00010285,2]
[421971612,1778385039000,-808.03195324,0.00010285,2]
[421971608,1778385039000,-2201.0,0.00010265,2]
[421971617,1778385039000,-160.0,0.000106,2]
[421971605,1778385039000,-151.0,0.0001,2]
[421971607,1778385039000,-561.8673214,0.00010074,2]
[421971606,1778385039000,-151.0,0.0001,2]
[421971603,1778385039000,-151.0,0.0001,2]
[421971600,1778385039000,-151.0,0.0001,2]
[421971602,1778385039000,-151.0,0.0001,2]
[421971601,1778385039000,-151.0,0.0001,2]
[421971604,1778385039000,-151.0,0.0001,2]
[421971618,1778385039000,-160.0,0.000106,2]
[421971610,1778385039000,-176.263,0.00010265,2]
[421971620,1778385039000,-184.82,0.00010613,2]
[421971636,1778385039000,-500.0,0.00010745,2]
[421971632,1778385039000,-500.0,0.00010745,2]
[421971635,1778385039000,-500.0,0.00010745,2]
[421971633,1778385039000,-500.0,0.00010745,2]
[421971637,1778385039000,-500.0,0.00010745,2]
[421971634,1778385039000,-324.86655714,0.00010745,2]
[421971630,1778385039000,-500.0,0.00010745,2]
[421971626,1778385039000,-500.0,0.00010745,2]
[421971631,1778385039000,-500.0,0.00010745,2]
[421971629,1778385039000,-500.0,0.00010745,2]
[421971627,1778385039000,-500.0,0.00010745,2]
[421971624,1778385039000,-160.0,0.00010672,2]
[421971623,1778385039000,-161.61126227,0.00010672,2]
[421971621,1778385039000,-195.44,0.00010614,2]
[421971625,1778385039000,-160.0,0.00010672,2]
[421971628,1778385039000,-500.0,0.00010745,2]
[421971622,1778385039000,-160.0,0.00010672,2]
[421971638,1778385039000,-31293.05582383,0.00010746,2]
[421971619,1778385039000,-1004.0,0.000106,2]
[421971641,1778385040000,-726.24112291,0.00010746,2]
[421971640,1778385040000,-1346.44188268,0.00010746,2]
[421971639,1778385040000,-2547.06363544,0.00010746,2]
[421971660,1778385043000,-3678.4336492,0.00010639,2]
[421971663,1778385046000,-688.92404718,0.00010639,2]
[421971734,1778385873000,215.64654361,0.00015637,120]
[421971811,1778386232000,-300.0,9.767e-05,2]
[421971810,1778386232000,-51.60389173,9.767e-05,2]
[421971812,1778386232000,-300.0,9.767e-05,2]
[421971809,1778386232000,-248.39610827,9.767e-05,2]
[421971808,1778386232000,-300.0,9.767e-05,2]
[421971805,1778386232000,-417.06304081,9.057e-05,2]
[421971802,1778386232000,-1717.27042546,8.657e-05,2]
[421971806,1778386232000,-300.0,9.767e-05,2]
[421971804,1778386232000,-1717.27042546,8.744e-05,2]
[421971807,1778386232000,-300.0,9.767e-05,2]
[421971813,1778386232000,-87.99860899,9.767e-05,2]
[421971922,1778386246000,-613.52706179,9.669e-05,2]
[421971923,1778386247000,-469.46775287,9.669e-05,2]
[421972023,1778387190000,1875.0,0.00019178,120]
[421972052,1778387432000,-300.0,9.961e-05,2]
[421972044,1778387432000,-436.15799852,8.484e-05,2]
[421972045,1778387432000,-436.15799852,8.57e-05,2]
[421972047,1778387432000,-300.0,9.961e-05,2]
[421972046,1778387432000,-415.35187334,8.788e-05,2]
[421972048,1778387432000,-300.0,9.961e-05,2]
[421972049,1778387432000,-300.0,9.961e-05,2]
[421972060,1778387432000,-300.0,9.961e-05,2]
[421972050,1778387432000,-300.0,9.961e-05,2]
[421972051,1778387432000,-300.0,9.961e-05,2]
[421972057,1778387432000,-300.0,9.961e-05,2]
[421972063,1778387432000,-210.57075856,0.0001,2]
[421972054,1778387432000,-300.0,9.961e-05,2]
[421972053,1778387432000,-300.0,9.961e-05,2]
[421972059,1778387432000,-300.0,9.961e-05,2]
[421972058,1778387432000,-300.0,9.961e-05,2]
[421972056,1778387432000,-300.0,9.961e-05,2]
[421972061,1778387432000,-300.0,9.961e-05,2]
[421972062,1778387432000,-1396.9925033,9.999e-05,2]
[421972064,1778387432000,-1235.26366352,0.0001,2]
[421972065,1778387432000,-96.15024944,0.00010159,2]
[421972055,1778387432000,-300.0,9.961e-05,2]
[421972111,1778387439000,-894.0,0.00010404,2]
[421972109,1778387439000,-894.0,0.00010404,2]
[421972113,1778387439000,-894.0,0.00010404,2]
[421972123,1778387439000,-239.826,0.00010654,2]
[421972115,1778387439000,-894.0,0.00010404,2]
[421972112,1778387439000,-894.0,0.00010404,2]
[421972114,1778387439000,-894.0,0.00010404,2]
[421972110,1778387439000,-894.0,0.00010404,2]
[421972120,1778387439000,-160.0,0.00010652,2]
[421972117,1778387439000,-894.0,0.00010404,2]
[421972118,1778387439000,-901.68364565,0.00010404,2]
[421972119,1778387439000,-160.0,0.00010652,2]
[421972107,1778387439000,-894.0,0.00010404,2]
[421972122,1778387439000,-161.61126227,0.00010652,2]
[421972127,1778387439000,-162.0,0.000108,2]
[421972121,1778387439000,-160.0,0.00010652,2]
[421972116,1778387439000,-894.0,0.00010404,2]
[421972108,1778387439000,-894.0,0.00010404,2]
[421972097,1778387439000,-894.0,0.00010404,2]
[421972105,1778387439000,-894.0,0.00010404,2]
[421972087,1778387439000,-503.84975056,0.00010159,2]
[421972088,1778387439000,-1411.0,0.00010161,2]
[421972089,1778387439000,-2201.0,0.00010161,2]
[421972090,1778387439000,-565.69647367,0.00010161,2]
[421972092,1778387439000,-185.0,0.00010161,2]
[421972093,1778387439000,-443.0,0.00010161,2]
[421972091,1778387439000,-175.30352633,0.00010161,2]
[421972106,1778387439000,-894.0,0.00010404,2]
[421972094,1778387439000,-475.506,0.00010161,2]
[421972100,1778387439000,-894.0,0.00010404,2]
[421972098,1778387439000,-894.0,0.00010404,2]
[421972099,1778387439000,-894.0,0.00010404,2]
[421972096,1778387439000,-894.0,0.00010404,2]
[421972102,1778387439000,-894.0,0.00010404,2]
[421972101,1778387439000,-894.0,0.00010404,2]
[421972104,1778387439000,-894.0,0.00010404,2]
[421972095,1778387439000,-894.0,0.00010404,2]
[421972124,1778387439000,-1749.80097108,0.00010746,2]
[421972103,1778387439000,-894.0,0.00010404,2]
[421972126,1778387439000,-490.11521054,0.00010788,2]
[421972149,1778387439000,-456.21299674,0.00010857,2]
[421972148,1778387439000,-368.1381987,0.00010857,2]
[421972150,1778387439000,-500.0,0.00010857,2]
[421972151,1778387439000,-500.0,0.00010857,2]
[421972153,1778387439000,-500.0,0.00010857,2]
[421972152,1778387439000,-397.82169262,0.00010857,2]
[421972155,1778387439000,-500.0,0.00010857,2]
[421972156,1778387439000,-500.0,0.00010857,2]
[421972157,1778387439000,-500.0,0.00010857,2]
[421972154,1778387439000,-316.44045812,0.00010857,2]
[421972159,1778387439000,-500.0,0.00010857,2]
[421972158,1778387439000,-570.44266099,0.00010857,2]
[421972164,1778387439000,-484.81917196,0.00010858,2]
[421972128,1778387439000,-800.0,0.000108,2]
[421972162,1778387439000,-500.0,0.00010857,2]
[421972161,1778387439000,-500.0,0.00010857,2]
[421972163,1778387439000,-500.0,0.00010857,2]
[421972165,1778387439000,-32350.40588983,0.00010858,2]
[421972147,1778387439000,-500.0,0.00010857,2]
[421972160,1778387439000,-500.0,0.00010857,2]
[421972145,1778387439000,-500.0,0.00010857,2]
[421972125,1778387439000,-501.0,0.00010746,2]
[421972129,1778387439000,-800.0,0.000108,3]
[421972130,1778387439000,-500.0,0.00010857,2]
[421972134,1778387439000,-500.0,0.00010857,2]
[421972131,1778387439000,-500.0,0.00010857,2]
[421972137,1778387439000,-500.0,0.00010857,2]
[421972135,1778387439000,-500.0,0.00010857,2]
[421972138,1778387439000,-502.53956368,0.00010857,2]
[421972133,1778387439000,-577.40659,0.00010857,2]
[421972132,1778387439000,-500.0,0.00010857,2]
[421972139,1778387439000,-500.0,0.00010857,2]
[421972140,1778387439000,-500.0,0.00010857,2]
[421972142,1778387439000,-500.0,0.00010857,2]
[421972144,1778387439000,-500.0,0.00010857,2]
[421972141,1778387439000,-500.0,0.00010857,2]
[421972143,1778387439000,-500.0,0.00010857,2]
[421972136,1778387439000,-500.0,0.00010857,2]
[421972146,1778387439000,-500.0,0.00010857,2]
[421972170,1778387441000,-326.60294947,0.00010858,2]
[421972193,1778387444000,-729.67770619,0.00010858,2]
[421972196,1778387444000,-1195.92778728,0.00010858,2]
[421972195,1778387444000,-45290.53186983,0.00010858,2]
[421972194,1778387444000,-6585.51744111,0.00010858,2]
[421972203,1778387616000,1116.97948725,0.00016339,120]
[421972204,1778387616000,1116.97948725,0.00016383,120]
[421972411,1778388638000,-473.74218606,8.906e-05,2]
[421972431,1778388638000,-300.0,0.00010251,2]
[421972441,1778388638000,-600.0,0.00010353,2]
[421972432,1778388638000,-300.0,0.00010251,2]
[421972430,1778388638000,-300.0,0.00010251,2]
[421972427,1778388638000,-300.0,0.00010251,2]
[421972425,1778388638000,-300.0,0.00010251,2]
[421972423,1778388638000,-153.48733118,0.00010245,2]
[421972424,1778388638000,-300.0,0.00010251,2]
[421972426,1778388638000,-300.0,0.00010251,2]
[421972420,1778388638000,-151.0,0.00010245,2]
[421972422,1778388638000,-151.0,0.00010245,2]
[421972429,1778388638000,-300.0,0.00010251,2]
[421972428,1778388638000,-300.0,0.00010251,2]
[421972419,1778388638000,-537.6845,0.00010245,2]
[421972418,1778388638000,-5000.0,0.00010185,2]
[421972417,1778388638000,-4770.61210778,0.00010185,2]
[421972414,1778388638000,-1411.0,0.00010151,2]
[421972416,1778388638000,-229.38789222,0.00010185,2]
[421972413,1778388638000,-411.10428908,9.133e-05,2]
[421972415,1778388638000,-474.26,0.00010151,2]
[421972412,1778388638000,-473.74218606,8.996e-05,2]
[421972421,1778388638000,-151.0,0.00010245,2]
[421972436,1778388638000,-300.0,0.00010251,2]
[421972434,1778388638000,-300.0,0.00010251,2]
[421972433,1778388638000,-300.0,0.00010251,2]
[421972440,1778388638000,-557.5788265,0.000103,2]
[421972459,1778388638000,-473.74218606,0.00010558,2]
[421972458,1778388638000,-1509.5865512,0.00010558,2]
[421972460,1778388638000,-4089.72413649,0.00010558,2]
[421972457,1778388638000,-2312395.95635867,0.00010558,2]
[421972455,1778388638000,-500.0,0.00010557,2]
[421972456,1778388638000,-387.85533756,0.00010558,2]
[421972454,1778388638000,-500.0,0.00010557,2]
[421972452,1778388638000,-500.0,0.00010557,2]
[421972451,1778388638000,-500.0,0.00010557,2]
[421972450,1778388638000,-500.0,0.00010557,2]
[421972453,1778388638000,-182.55833948,0.00010557,2]
[421972448,1778388638000,-229.87625851,0.00010557,2]
[421972435,1778388638000,-300.0,0.00010251,2]
[421972438,1778388638000,-300.0,0.00010251,2]
[421972449,1778388638000,-500.0,0.00010557,2]
[421972439,1778388638000,-233.65,0.00010254,2]
[421972442,1778388638000,-578.20924308,0.00010355,2]
[421972437,1778388638000,-300.0,0.00010251,2]
[421972443,1778388638000,-599.60298507,0.0001041,2]
[421972447,1778388638000,-500.0,0.00010557,2]
[421972445,1778388638000,-644.79446246,0.0001052,2]
[421972446,1778388638000,-500.0,0.00010557,2]
[421972444,1778388638000,-621.78829552,0.00010465,2]
[421972480,1778388643000,-527.37060269,0.00010558,2]
[421972481,1778388643000,-3576.91254535,0.00010558,2]
[421972494,1778388646000,-7256.81502638,0.00010558,2]
[421972492,1778388646000,-1633.32214111,0.00010558,2]
[421972493,1778388646000,-6439.79107111,0.00010558,2]
[421972786,1778389831000,-417.6211297,9.225e-05,2]
[421972782,1778389831000,-276.19446412,8.995e-05,2]
[421972787,1778389831000,-500.81828497,0.0001,2]
[421972784,1778389831000,-276.19446412,9.086e-05,2]
[421972790,1778389831000,-162.05,0.00010151,2]
[421972788,1778389831000,-300.0,0.0001015,2]
[421972789,1778389831000,-300.0,0.0001015,2]
[421972791,1778389831000,-357.76064716,0.00010258,2]
[421972792,1778389831000,-866.91575781,0.00010258,2]
[421972893,1778389843000,-34258.06788533,0.00010258,2]
[421972892,1778389843000,-144041.56384429,0.00010258,2]
[421972890,1778389843000,-29363.73599831,0.00010258,2]
[421972891,1778389843000,-288.07357235,0.00010258,2]
[421972889,1778389843000,-1343.32405583,0.00010258,2]
[421972898,1778389846000,-24262.2810927,0.00010155,2]
[421972899,1778389846000,-16471.25704675,0.00010258,2]
[421972907,1778390144000,97230.10075228,0.00019178,120]
[421972986,1778391032000,-11994.82591006,0.00010058,2]
[421972983,1778391032000,-1343.7500641,0.00010058,2]
[421972979,1778391032000,-9296.89846836,0.00010058,2]
[421972977,1778391032000,-286.20851772,0.00010058,2]
[421972975,1778391032000,-409.26870711,9.734e-05,2]
[421972973,1778391032000,-409.26870711,9.636e-05,2]
[421973102,1778391038000,-4752.06329729,9.957e-05,2]
[421973103,1778391038000,-810.37450536,9.957e-05,2]
[421973104,1778391038000,-1115.4425302,0.00010058,2]
[421973101,1778391038000,-372.04355434,9.957e-05,2]
[421973113,1778391046000,-3368.31081735,0.00010058,2]
[421973129,1778391972000,10000.0,0.00019178,120]
[421973159,1778392232000,-500.0,9.699e-05,2]
[421973157,1778392232000,-500.0,9.699e-05,2]
[421973161,1778392232000,-500.0,9.699e-05,2]
[421973154,1778392232000,-231.52314005,9.699e-05,2]
[421973148,1778392232000,-1200.0,9.697e-05,2]
[421973153,1778392232000,-500.0,9.699e-05,2]
[421973151,1778392232000,-300.0,9.698e-05,2]
[421973150,1778392232000,-300.0,9.698e-05,2]
[421973149,1778392232000,-300.0,9.698e-05,2]
[421973147,1778392232000,-456.3760811,9.628e-05,2]
[421973146,1778392232000,-456.3760811,9.628e-05,2]
[421973145,1778392232000,-3938.91537964,9.507e-05,2]
[421973152,1778392232000,-300.0,9.698e-05,2]
[421973171,1778392232000,-500.0,9.699e-05,2]
[421973155,1778392232000,-500.0,9.699e-05,2]
[421973175,1778392232000,-161.47821125,9.699e-05,2]
[421973183,1778392232000,-301.84197057,9.699e-05,2]
[421973186,1778392232000,-43.38346623,9.699e-05,2]
[421973185,1778392232000,-500.0,9.699e-05,2]
[421973182,1778392232000,-198.15802943,9.699e-05,2]
[421973184,1778392232000,-500.0,9.699e-05,2]
[421973181,1778392232000,-543.11802766,9.699e-05,2]
[421973180,1778392232000,-500.0,9.699e-05,2]
[421973173,1778392232000,-420.81750166,9.699e-05,2]
[421973178,1778392232000,-500.0,9.699e-05,2]
[421973177,1778392232000,-152.01535541,9.699e-05,2]
[421973165,1778392232000,-500.0,9.699e-05,2]
[421973169,1778392232000,-500.0,9.699e-05,2]
[421973163,1778392232000,-500.0,9.699e-05,2]
[421973167,1778392232000,-500.0,9.699e-05,2]
[421973179,1778392232000,-320.52784514,9.699e-05,2]
[421973220,1778392238000,-4606.7222871,9.602e-05,2]
[421973266,1778392244000,-456.61653377,9.699e-05,2]
[421973265,1778392244000,-393.2777129,9.602e-05,2]
[421973268,1778392244000,-500.0,9.699e-05,2]
[421973267,1778392244000,-500.0,9.699e-05,2]
[421973269,1778392244000,-500.0,9.699e-05,2]
[421973271,1778392244000,-500.0,9.699e-05,2]
[421973270,1778392244000,-500.0,9.699e-05,2]
[421973272,1778392244000,-118.85575333,9.699e-05,2]
[421973485,1778393387000,1305.7,0.00019178,120]
[421973487,1778393427000,1305.8,0.00019178,120]
[421973522,1778393432000,-456.1664748,8.659e-05,2]
[421973525,1778393432000,-421.4116113,8.834e-05,2]
[421973529,1778393432000,-325.7824685,9.631e-05,2]
[421973550,1778393432000,-2799.93749255,9.822e-05,2]
[421973535,1778393432000,-456.3760811,9.631e-05,2]
[421973533,1778393432000,-325.7824685,9.631e-05,2]
[421973527,1778393432000,-456.1664748,8.923e-05,2]
[421973531,1778393432000,-456.2746098,9.631e-05,2]
[421973546,1778393432000,-3086.6468702,9.822e-05,2]
[421973538,1778393432000,-88.7009337,9.635e-05,2]
[421973544,1778393432000,-300.0,9.821e-05,2]
[421973542,1778393432000,-300.0,9.821e-05,2]
[421973548,1778393432000,-166.4964389,9.822e-05,2]
[421973540,1778393432000,-62.2990663,9.635e-05,2]
[421973811,1778393438000,-4180.06640465,9.822e-05,2]
[421973814,1778393438000,-160.0,0.0001,2]
[421973815,1778393438000,-1000.94779178,0.0001,2]
[421973822,1778393438000,-28591.57464382,0.00010389,2]
[421973813,1778393438000,-297.31955893,9.866e-05,21]
[421973816,1778393438000,-2243.93115546,0.0001,2]
[421973819,1778393438000,-274.226,0.00010258,2]
[421973820,1778393438000,-537.6845,0.00010276,2]
[421973818,1778393438000,-160.0,0.000102,2]
[421973821,1778393438000,-617.59664068,0.00010331,2]
[421973817,1778393438000,-161.41251579,0.000101,2]
[421973845,1778393447000,-1607.50592395,0.00010285,2]
[421973846,1778393447000,-1711.20865688,0.00010285,2]
[421973848,1778393447000,-1064.0,0.00010285,2]
[421973847,1778393447000,-288.87684538,0.00010285,2]
[421973850,1778393459000,1305.8,0.00019178,120]
[421973851,1778393483000,652.9,0.00019178,120]
[421973854,1778393596000,20000.0,0.00019,120]
[421973864,1778394372000,4088.73269758,0.00019178,120]
[421973871,1778394579000,8000.0,0.000191,120]
[421973881,1778394631000,-125.8413923,9.999e-05,2]
[421973877,1778394631000,-151.962606,8.632e-05,2]
[421973882,1778394631000,-5665.45769483,0.0001,8]
[421973876,1778394631000,-151.962606,8.546e-05,2]
[421973880,1778394631000,-174.1586077,9.999e-05,2]
[421973879,1778394631000,-151.962606,8.821e-05,2]
[421973878,1778394631000,-412.98337907,8.763e-05,2]
[421973883,1778394631000,-759.4444604,0.0001,8]
[421973888,1778394638000,-419.80373734,9.933e-05,2]
[421973889,1778394638000,-551.23012613,0.0001,8]
[421973896,1778394640000,-700.05161533,0.0001,8]
[421973897,1778394640000,-3250.67284012,0.0001,8]
[421973895,1778394640000,-6625.51755511,0.0001,8]
[421973917,1778394643000,-10502.98590886,0.0001,8]
[421973919,1778394646000,-2000.0,0.0001,8]
[421974084,1778395831000,-411.12198691,8.789e-05,2]
[421974085,1778395831000,-175.6749318,9.018e-05,2]
[421974083,1778395831000,-175.6749318,8.64e-05,2]
[421974086,1778395832000,-219.381,9.781e-05,2]
[421974088,1778395832000,-500.0,9.88e-05,2]
[421974092,1778395832000,-393.72642686,9.881e-05,2]
[421974087,1778395832000,-1248.0,9.789e-05,2]
[421974089,1778395832000,-263.04383601,9.88e-05,2]
[421974090,1778395832000,-500.0,9.88e-05,2]
[421974091,1778395832000,-500.0,9.88e-05,2]
[421974095,1778395840000,-500.0,9.88e-05,2]
[421974094,1778395840000,-500.0,9.88e-05,2]
[421974096,1778395840000,-500.0,9.88e-05,2]
[421974098,1778395840000,-221.94721931,9.88e-05,2]
[421974099,1778395840000,-500.0,9.88e-05,2]
[421974101,1778395840000,-500.0,9.88e-05,2]
[421974102,1778395840000,-500.0,9.88e-05,2]
[421974097,1778395840000,-500.0,9.88e-05,2]
[421974106,1778395840000,-416.23857168,9.88e-05,2]
[421974109,1778395840000,-500.0,9.88e-05,2]
[421974110,1778395840000,-483.96134231,9.88e-05,2]